Cogmind - Beta 15 @@@ ROGUE MODE // 2025.05.17 @ 18:35:03 Player: Figgis Result: Destroyed by S-10 Pest with Light Assault Rifle Performance ------------- Evolutions (0) 0 Regions Visited (2) 400 Robots Destroyed (20) 100 Value Destroyed (721) 721 Prototype IDs (2) 40 Alien Tech Used (0) 0 Bonus (0) 0 TOTAL SCORE: 1261 Bonus ------- None Cogmind --------- Core Integrity 0/250 Matter 295/300 Energy 200/200 System Corruption 0% Temperature Cool (0) Movement Walking (260) Ox2 Location -10/Subcaves Parts ------- > --- POWER (1) -------- Subdweller Power Source > --- PROPULSION (2) --- Aluminum Leg > --- UTILITY (2) ------ Medium Storage Unit Subdweller Optics > --- WEAPON (2) ------- Subdweller Laser Subdweller Beam Cannon > --- INVENTORY (10) --- Aluminum Leg Medium Storage Unit Humpback Grenade Launcher Peak State ------------ > --- POWER ------------ Subdweller Power Source > --- PROPULSION ------- Aluminum Leg Aluminum Leg > --- UTILITY ---------- Medium Storage Unit Visual Processing Unit > --- WEAPON ----------- Subdweller Laser Battle Rifle > --- INVENTORY -------- Ion Engine Aluminum Leg Aluminum Leg Aluminum Leg Improved Heat Sink Improved Heat Sink Medium Storage Unit Propulsion Shielding Grenade Launcher Mining Laser [Rating: 12] Favorites ----------- Power Subdweller Power Source Engine Subdweller Power Source Propulsion Aluminum Leg Treads Light Treads Leg Aluminum Leg Wheel Compact Wheel Utility Medium Storage Unit Device Subdweller Optics Storage Medium Storage Unit Processor Visual Processing Unit Weapon Battle Rifle Energy Gun Subdweller Laser Energy Cannon Subdweller Beam Cannon Ballistic Gun Battle Rifle Launcher Grenade Launcher Special Weapon Mining Laser Build | -11 -10 -10 ------- Run | Yrd Mat Sub Slots Evolved . | . . . Power . | . . . Propulsion . | . . . Utility . | . . . Weapon . | . . . Parts Attached 26 | 8 7 11 Power 5 | 2 . 3 Engine 5 | 2 . 3 Core . | . . . Reactor . | . . . Propulsion 7 | 3 2 2 Treads 2 | 2 . . Leg 4 | . 2 2 Wheel 1 | 1 . . Hover . | . . . Flight . | . . . Utility 6 | 1 3 2 Device 3 | . 1 2 Storage 2 | 1 1 . Processor 1 | . 1 . Hackware . | . . . Protection . | . . . Artifact . | . . . Weapon 8 | 2 2 4 Energy Gun 2 | . 1 1 Energy Cannon 1 | . . 1 Ballistic Gun 3 | 2 . 1 Ballistic Cannon . | . . . Launcher 1 | . . 1 Special Weapon 1 | . 1 . Impact Weapon . | . . . Slashing Weapon . | . . . Piercing Weapon . | . . . Special Melee Weapon . | . . . Unidentified Prototypes . | . . . Parts Lost 6 | . . 6 Power . | . . . Propulsion 3 | . . 3 Utility 1 | . . 1 Weapon 2 | . . 2 Highest Loss Streak 1 | . . 1 To Critical Strikes . | . . . Average Backups 7 | 2 8 7 Power . | . . . Propulsion 2 | 1 3 2 Utility 2 | . 1 2 Weapon 2 | . 2 2 Tool/Special . | . . . Unused Backups 8 | . 1 7 Power 1 | . . 1 Propulsion 1 | . . 1 Utility 5 | . . 5 Weapon 1 | . 1 . Tool/Special . | . . . Average Slot Usage (%) 96 | . 97 96 Engine 13 | . 13 13 Treads 6 | . 23 . Leg 21 | . 4 27 Device 6 | . 11 5 Storage 14 | . 14 14 Processor 4 | . . 5 Energy Gun 7 | . 2 9 Energy Cannon 5 | . . 7 Ballistic Gun 14 | . 25 9 Peak Build Rating 12 | 6 8 12 Average Rating 9 | 4 7 10 On Entrance 4 | . 6 8 Naked Turns . | . . . Heaviest Build 29 | 11 20 29 Greatest Support 40 | 40 40 20 Greatest Overweight (x) 2 | 2 . 2 Average Overweight (x) . | . . . Largest Inventory Capacity 10 | 8 10 10 Average Capacity 9 | 7 9 10 Most Carried 10 | 7 10 10 Average Carried 8 | 3 8 8 Final Capacity 10 | 8 10 10 Final Carried 9 | 4 9 5 Class Distribution -------------------- 60% | Scavenger-Mutant 39% | Mutant Dominant Class ---------------- Mutant | -10/Materials Scavenger-Mutant | -10/Subcaves Resources | -11 -10 -10 ----------- Run | Yrd Mat Sub Matter Collected 791 | 194 349 248 Remotely . | . . . Salvage Created 780 | . 412 368 Parts 41 | . 23 18 Haulers Intercepted . | . . . Recyclers Shooed . | . . . Parts Field Recycled . | . . . Retrieved Matter . | . . . Parts Self-Destructed 4 | . . 4 Prevented . | . . . Kills | -11 -10 -10 ------- Run | Yrd Mat Sub Combat Hostiles Destroyed 18 | . 9 9 Guns 15 | . 9 6 Cannons 3 | . . 3 Classes Destroyed 3 | . 2 1 Watcher 2 | . 2 . Grunt 9 | . 9 . Subdweller 9 | . . 9 Best Kill Streak 2 | . 2 2 Combat Bots Only 2 | . 2 2 Max Kills in Single Turn 1 | . 1 1 Gunslinging . | . . . Exploded . | . . . Melee . | . . . Uniques/NPCs Destroyed . | . . . Combat | -11 -10 -10 -------- Run | Yrd Mat Sub Hostile Shots Fired 101 | . 52 49 Missed 23 | . 13 10 Hits 78 | . 39 39 Projectile 78 | . 39 39 Critical Strikes 2 | . 1 1 Damage Taken 1261 | . 438 823 Core 253 | . 87 166 Absorbed by Shields . | . . . Core Remaining (%) 100 | 100 . . Volleys Fired 84 | . 42 42 Largest 2 | . 2 2 Hottest 160 | . 120 160 Shots Fired 161 | . 84 77 Gun 138 | . 83 55 Cannon 15 | . . 15 Launcher 2 | . . 2 Special 6 | . 1 5 Kinetic 108 | . 80 28 Thermal 51 | . 4 47 Explosive 2 | . . 2 Electromagnetic . | . . . Robot Hit Streak 14 | . 5 14 Robot Miss Streak 3 | . 3 2 Penetration Max . | . . . Secondary Targets 1 | . 1 . Max Gunslinging Chain 1 | . 1 . Shots Hit Robots 106 | . 49 57 Core Hits 39 | . 21 18 Critical Kills . | . . . Critical Parts Destroyed 1 | . 1 . Critical Strikes 1 | . 1 . Destroy 1 | . 1 . Melee Attacks . | . . . Impact . | . . . Slashing . | . . . Piercing . | . . . Sneak Attacks . | . . . Combat Hostiles . | . . . Follow-up Attacks . | . . . Damage Inflicted 1560 | . 515 1045 Guns 1260 | . 515 745 Cannons 252 | . . 252 Explosions . | . . . Melee . | . . . Ramming . | . . . Kinetic 788 | . 490 298 Thermal 772 | . 25 747 Explosive . | . . . Electromagnetic . | . . . Impact . | . . . Slashing . | . . . Piercing . | . . . Highest Corruption . | . . . Average Corruption . | . . . Corruption Purged . | . . . Corruption Blocked . | . . . Overload Shots . | . . . Overflow Damage . | . . . Projectiles . | . . . Explosions . | . . . Melee . | . . . Knockbacks . | . . . Impact . | . . . Kinetic . | . . . Secondary . | . . . Self-Inflicted Damage . | . . . Shots . | . . . Rammed . | . . . Targets Rammed . | . . . Kicked . | . . . Crushed . | . . . Highest Temperature 65 | . 40 65 Average Temperature 14 | . 11 18 Received Heat Transfer 399 | . 264 135 Siege Activations . | . . . Martial Activations . | . . . Shielding Activations . | . . . Robots Disrupted . | . . . Combat Hostiles . | . . . Robots Corrupted . | . . . Combat Hostiles . | . . . Parts Fried . | . . . Impact Corruptions . | . . . Robots Melted . | . . . Combat Hostiles . | . . . Parts Melted 6 | . 1 5 Heat Transferred 1130 | . 74 1056 Parts Sabotaged . | . . . Parts Stolen . | . . . Parts Stripped . | . . . Power Chain Reactions . | . . . Alert | -11 -10 -10 ------- Run | Yrd Mat Sub Maximum Alert Level . | . . . Low Security (%) 100 | 100 100 . Level 1 . | . . . Level 2 . | . . . Level 3 . | . . . Level 4 . | . . . Level 5 . | . . . High Security . | . . . Max Security . | . . . Peak Influence 106 | . 106 . Initial . | . . . Average 49 | . 54 . Influence Increases 275 | . 275 . Destroy 0b10 Robot/C 180 | . 180 . Destroy 0b10 Robot/NC 10 | . 10 . Destroy Leader 34 | . 34 . Successful Hack 5 | . 5 . Disable Machine 15 | . 15 . Destroy Structure 1 | . 1 . Lose Combat Pursuer 30 | . 30 . Influence Decreases 275 | . 234 41 Entered New Map 21 | . . 21 Time Decay 254 | . 234 20 Squads Dispatched 3 | . 3 . Investigation 2 | . 2 . Extermination . | . . . Reinforcement 1 | . 1 . Assault . | . . . Garrison . | . . . Intercept . | . . . Searches Triggered . | . . . Construction Impeded . | . . . Haulers Reinforced . | . . . Active Scanning Responses . | . . . Cargo Convoy Interrupts . | . . . Stealth | -11 -10 -10 --------- Run | Yrd Mat Sub Distress Signals 1 | . 1 . Communications Jammed . | . . . Distress Signals . | . . . Times Spotted 26 | . 13 13 Peak Tracking Total 3 | . 3 3 Tactical Retreats 2 | . 2 . Traps | -11 -10 -10 ------- Run | Yrd Mat Sub Traps Triggered 3 | . 2 1 Indirectly . | . . . Trap Hack Attempts . | . . . Triggered . | . . . Disarmed . | . . . Reprogrammed . | . . . Reused . | . . . Traps Extracted . | . . . Installed . | . . . Triggered . | . . . Machines | -11 -10 -10 ---------- Run | Yrd Mat Sub Machines Disabled 1 | . 1 . Max in Single Turn 1 | . 1 . Machines Repaired . | . . . Machines Dismantled . | . . . Machines Sabotaged . | . . . Overloaded Fab Kills . | . . . Hacking | -11 -10 -10 --------- Run | Yrd Mat Sub Machines Accessed 4 | . 4 . Terminals 3 | . 3 . Fabricators . | . . . Repair Stations . | . . . Recycling Units 1 | . 1 . Scanalyzers . | . . . Garrison Access . | . . . Total Hacks 12 | . 12 . Successful 3 | . 3 . Failed 9 | . 9 . Catastrophic 3 | . 3 . Database Lockouts . | . . . Manual 7 | . 7 . Terminals 10 | . 10 . Fabricators . | . . . Repair Stations . | . . . Recycling Units 2 | . 2 . Scanalyzers . | . . . Garrison Access . | . . . Terminal Hacks 1 | . 1 . Prototype ID Bank 1 | . 1 . Fabricator Hacks . | . . . Repair Station Hacks . | . . . Recycling Unit Hacks 2 | . 2 . Report Inventory 1 | . 1 . Retrieve Matter 1 | . 1 . Scanalyzer . | . . . Garrison Access Hacks . | . . . Unauthorized Hacks . | . . . Terminals . | . . . Fabricators . | . . . Repair Stations . | . . . Recycling Units . | . . . Scanalyzers . | . . . Garrison Access . | . . . Data Cores Recovered . | . . . Used . | . . . Hacking Detections 3 | . 3 . Full Trace Events 2 | . 2 . Feedback Events . | . . . Feedback Blocked . | . . . Robot Schematics Acquired . | . . . Robots Built . | . . . Authchips . | . . . Time . | . . . Total Robot Build Rating . | . . . Part Schematics Acquired . | . . . Parts Built . | . . . Authchips . | . . . Time . | . . . Total Part Build Rating . | . . . Parts Repaired . | . . . Time . | . . . Parts Recycled . | . . . Recycled Matter . | . . . Retrieved Matter . | . . . Retrieved Components . | . . . Parts Scanalyzed . | . . . Part Schematics Acquired . | . . . Parts Damaged . | . . . Bothacking | -11 -10 -10 ------------ Run | Yrd Mat Sub Used RIF Installer . | . . . Robots Hacked . | . . . Non-combat . | . . . Combat . | . . . Robot Hacks Applied . | . . . Relay Couplers Released . | . . . Fabnet Peak Effective % . | . . . Robots Rewired . | . . . Allies Hacked . | . . . Hacks Repelled . | . . . Allies | -11 -10 -10 -------- Run | Yrd Mat Sub Total Allies . | . . . Largest Group . | . . . Highest-Rated Group . | . . . Highest-Rated Ally . | . . . Total Orders . | . . . Ally Attacks . | . . . Total Damage . | . . . Kills . | . . . Allies Corrupted . | . . . Allies Melted . | . . . Intel | -11 -10 -10 ------- Run | Yrd Mat Sub Active Infowar (turns) 1923 | . 578 1345 Optics 1383 | . 38 1345 Sensors 540 | . 540 . Robot Analysis Total . | . . . Derelict Logs Recovered 1 | . . 1 Drone Launches . | . . . Drone Recoveries . | . . . Exploration | -11 -10 -10 ------------- Run | Yrd Mat Sub Turns Passed 2465 | 64 656 1745 Spaces Moved 1238 | 35 329 874 Core 5 | 5 . . Treads 278 | 16 262 . Legs 941 | . 67 874 Wheels 14 | 14 . . Hover . | . . . Flight . | . . . Fastest Speed 50 | 50 120 120 Average Speed 168 | 126 151 176 Slowest Speed 260 | 160 160 260 Overloaded Moves . | . . . Propulsion Burnouts . | . . . Robots Hopped . | . . . Potential Cave-ins . | . . . Cave-ins Triggered . | . . . Exploration Rate (%) 32 | 4 44 49 Regions Visited 2 Branch Regions 1 Pre-discovered Areas 1 | . . 1 Known Exits Taken . | . . . Unknown Exits Taken 2 | 1 1 . Scrap Searched . | . . . Spaces Dug 1 | . 1 . Terrain Destroyed 22 | . 1 21 Melee . | . . . Projectile 1 | . 1 . AOE 21 | . . 21 Terrain Rammed . | . . . Walls Destroyed . | . . . Machines Disabled . | . . . Actions | -11 -10 -10 --------- Run | Yrd Mat Sub Total 1452 | 55 406 991 Wait 51 | . 9 42 Move 1236 | 34 328 874 Hop . | . . . Pick Up 29 | 11 11 7 Fast Attach 6 | . 3 3 Attach 19 | 7 5 7 Detach . | . . . Swap 11 | 2 3 6 Drop 16 | 1 5 10 Fire 84 | . 42 42 Melee . | . . . Ram . | . . . Kick . | . . . Crush . | . . . Escape Stasis . | . . . Rewire . | . . . Trap . | . . . Miscellaneous . | . . . Route ------- -11/Scrapyard -10/Materials (discovered 3 exits: [*Mat] / [*Min] / [*Sub]) -10/Subcaves (discovered 1 exit: [*Mat]) History --------- Turn | Location | Event 20 | -11/Scrapyard | Discovered new exit (range 14) 65 | -11/Scrapyard | Entered Materials 66 | -10/Materials | Met a group of wandering Federalists 142 | -10/Materials | Lost 3 allies 332 | -10/Materials | Build established: Mutant 497 | -10/Materials | Discovered new exit (range 13) 637 | -10/Materials | Discovered new exit (range 11) 698 | -10/Materials | Discovered new exit (range 15) 721 | -10/Materials | Entered Subcaves 722 | -10/Subcaves | Continued accompanying wandering Federalists (2) 1156 | -10/Subcaves | Build established: Scavenger-Mutant 1361 | -10/Subcaves | Core integrity fell below 50% 1388 | -10/Subcaves | Core integrity fell below 20% 1890 | -10/Subcaves | Learned location of Zion (-7) 2445 | -10/Subcaves | Discovered new exit (range 17) 2466 | -10/Subcaves | Destroyed by S-10 Pest with Light Assault Rifle Last Messages --------------- 01860_ Acquired 12 matter. 01863_ Acquired 10 matter. 01890_ Acquired derelict log, extracted data. World map updated: -7/Zion. 01901_ Battle Rifle destroyed. 01905_ Sub. Optics melted. 01905_ 71-6EU(R) destroyed. 01910_ Acquired 11 matter. 01957_ Sub. Power Source shoots sparks and powers down. 01971_ Dropped Broken Sub. Power Source. 02039_ Sub. Optics destroyed. 02044_ M7-4I6(R) destroyed. 02101_ Mining Laser destroyed. 02111_ 95-RKM(R) destroyed. 02113_ Acquired 20 matter. 02116_ Acquired 10 matter. 02230_ Subatomizers dissect the Sub. Power Source. 02436_ Acquired Sub. Optics. 02445_ EXIT=FOUND 02460_ Aluminum Leg destroyed. Map ----- +----------------------------------------------------+ | ??????????????##### #????????????????????????? | | ?????????#####????# ##????????????????????????? | | ?????????# #???## ####???????????????????????? | | ??????????# #?### ## ###?????????????????????? | | ??????????# ## #?????????????????????? | | ??????????# % %##?????????????????????? | | ??????????## % #??????????????????????? | | ???????????## %## #?? ?????????????????? | | ????????????## #### #?? ?????????????????? | | ?????????????# #??## ## ?#???????????????? | | ????????????## ##??## ? #???????????????? | | ???????????##% ##???## ????????????????? | | ???????????# #?????# ????????????????? | | ???????????####% #??????# ## ????????????????? | | ??????????????# % ##?????? ##??????????????????? | | ??????????????# % ###???# #?????????#?????????? | | ??????????????## %#### #???????? ###???????? | | ???????????????## #?##??? #???????? | | ????????????????## # #?? #???????? | | ?????????????????#% %## ## ?????????? | | ?????????????????# % #???????????? | | ?????????????#####% % #????????????? | | ?????????????# ##% # % %#??????????????? | | ?????????????# !*=### % # %#???? ???????? | | ?????????????## ### % % ### ???????? | | ????????????### # @ % # < ?????? | | ????????????# sss% %#??????????????? | | ????????????# # ##??????????????? | | ????????????# ### # % #???????????????? | | ????????????# ##?##### % # ##???????????????? | | ????????????# #??????## % #??????????????? | | ????????????# #??????? ????????????? | | ????????????# ???????% ??????????? | | ????????????## ??????? ## ## ????????? | | ?????????????## ???????#?? %##?# ### ????????? | | ??????????????# ??????????% #??? #??? ???????? | | ??????????????# ?????????? #????##???? ???????? | | ??????????????# ??????????###???????????????????? | | ??????????????? ????????????????????????????????? | | ???????????????# ????????????????????????????????? | | ????????????????#????????????????????????????????? | | ?????????????????????????????????????????????????? | | ?????????????????????????????????????????????????? | | ?????????????????????????????????????????????????? | | ?????????????????????????????????????????????????? | | ?????????????????????????????????????????????????? | | ?????????????????????????????????????????????????? | | ?????????????????????????????????????????????????? | | ?????????????????????????????????????????????????? | | ?????????????????????????????????????????????????? | +----------------------------------------------------+ Best States ------------- Heat Dissipation 25 Energy Generation 15 Energy Capacity 250 Matter Stores 300 Matter Capacity 300 Sight Range 21 Robot Scan Range 14 Terrain Scan Density 10 Evasion (%) 55 Recoil Reduction 2 Item Schematics ----------------- None Robot Schematics ------------------ None Fabricated ------------ Nothing Repaired ---------- Nothing Alien Tech Used ----------------- None Achievements -------------- None Challenges ------------ None Game ------ Seed DrainedSigixCompressor Manual? 0 Play Time 00:18:27 Cumulative 118.8 hours Start 2025.05.17 @ 18:16:44 End 2025.05.17 @ 18:35:03 Sessions 1 Manual Loads 0 Difficulty Rogue Special Mode None Game No. 187 Rogue 184 Adventurer 3 Explorer 0 Win Type - Total 0 Types 0/0/0/0/0/0/0/0/0/0 Lore% 25 Gallery% 50 Achievement% 41 Wizard Run 0 Options --------- Layout 0 ASCII 0 Keyboard 0 Movement Mouse Keybinds 0 Fullscreen 2 Font 18/SmallcapsGlow Map View 76x50 Zoom Use 0% Tactical HUD 1 Map Filters NONE Filters NONE Steam 1 RUN: 5f554c40-0913-43cd-a05d-d704f7431756